fUST/lending_fUST_20250725
["ID","MTS","AMOUNT","RATE_DAILY","PERIOD"]
[374645642,1753397440925,-460.0,0.00018853,2]
[374645644,1753397440934,-460.0,0.00018853,2]
[374645646,1753397440944,-550.03073719,0.00018853,2]
[374645648,1753397440957,-150.11443039,0.00018853,2]
[374645650,1753397440968,-460.0,0.00018853,2]
[374645652,1753397440978,-460.0,0.00018853,2]
[374645654,1753397440988,-563.12216986,0.00018853,2]
[374645656,1753397440997,-460.0,0.00018853,2]
[374645659,1753397441008,-460.0,0.00018853,2]
[374645661,1753397441018,-626.16,0.00018853,2]
[374645663,1753397441028,-460.0,0.00018853,2]
[374645665,1753397441038,-460.0,0.00018853,2]
[374645667,1753397441048,-521.21094315,0.00018853,2]
[374645669,1753397441058,-460.0,0.00018853,2]
[374645671,1753397441068,-460.0,0.00018853,2]
[374645673,1753397441077,-460.0,0.00018853,2]
[374645675,1753397441087,-460.0,0.00018853,2]
[374645676,1753397441096,-460.0,0.00018853,2]
[374645678,1753397441105,-460.0,0.00018853,2]
[374645680,1753397441115,-460.0,0.00018853,2]
[374645682,1753397441126,-460.0,0.00018853,2]
[374645684,1753397441136,-460.0,0.00018853,2]
[374645686,1753397441146,-460.0,0.00018853,2]
[374645689,1753397441156,-561.58,0.00018853,2]
[374645691,1753397441166,-460.0,0.00018853,2]
[374645693,1753397441176,-460.0,0.00018853,2]
[374645695,1753397441186,-488.72,0.00018853,2]
[374645697,1753397441196,-460.0,0.00018853,2]
[374645699,1753397441206,-310.55750851,0.00018853,2]
[374645701,1753397441220,-375.15088434,0.00018853,2]
[374645703,1753397441230,-460.0,0.00018853,2]
[374645705,1753397441241,-244.13715898,0.00018853,2]
[374645707,1753397441251,-712.96,0.00018853,2]
[374645709,1753397441261,-460.0,0.00018853,2]
[374645711,1753397441271,-460.0,0.00018853,2]
[374645713,1753397441281,-918.14,0.00018853,2]
[374645715,1753397441290,-460.0,0.00018853,2]
[374645717,1753397441300,-460.0,0.00018853,2]
[374645719,1753397441311,-460.0,0.00018853,2]
[374645721,1753397441321,-460.0,0.00018853,2]
[374645724,1753397441332,-460.0,0.00018853,2]
[374645726,1753397441342,-518.13,0.00018853,2]
[374645728,1753397441352,-461.5477359,0.00018853,2]
[374645730,1753397441362,-460.0,0.00018853,2]
[374645732,1753397441372,-705.68,0.00018853,2]
[374645733,1753397441382,-571.59,0.00018853,2]
[374645734,1753397441392,-460.0,0.00018853,2]
[374645735,1753397441402,-460.0,0.00018853,2]
[374645736,1753397441411,-460.0,0.00018853,2]
[374645737,1753397441422,-460.0,0.00018853,2]
[374645738,1753397441432,-460.0,0.00018853,2]
[374645739,1753397441443,-460.0,0.00018853,2]
[374645740,1753397441453,-460.0,0.00018853,2]
[374645741,1753397441462,-635.83,0.00018853,2]
[374645742,1753397441472,-460.0,0.00018853,2]
[374645743,1753397441482,-460.0,0.00018853,2]
[374645744,1753397441492,-460.0,0.00018853,2]
[374645745,1753397441501,-1013.56,0.00018853,2]
[374645746,1753397441655,-460.0,0.00018853,2]
[374645747,1753397441666,-1037.79,0.00018853,2]
[374645748,1753397441675,-460.0,0.00018853,2]
[374645749,1753397441685,-460.0,0.00018853,2]
[374645750,1753397441695,-460.0,0.00018853,2]
[374645751,1753397441704,-460.0,0.00018853,2]
[374645752,1753397441713,-460.0,0.00018853,2]
[374645753,1753397441723,-460.0,0.00018853,2]
[374645754,1753397441733,-205.89505864,0.00018853,2]
[374645755,1753397441742,-460.0,0.00018853,2]
[374645756,1753397441753,-460.0,0.00018853,2]
[374645757,1753397441763,-460.83074155,0.00018853,2]
[374645758,1753397441772,-460.0,0.00018853,2]
[374645759,1753397441782,-460.0,0.00018853,2]
[374645760,1753397441792,-460.0,0.00018853,2]
[374645761,1753397441803,-460.0,0.00018853,2]
[374645762,1753397441817,-563.39464806,0.00018853,2]
[374645764,1753397441826,-460.0,0.00018853,2]
[374645765,1753397441837,-460.0,0.00018853,2]
[374645766,1753397441846,-460.0,0.00018853,2]
[374645768,1753397441856,-466.74883979,0.00018853,2]
[374645770,1753397441866,-460.0,0.00018853,2]
[374645772,1753397441877,-460.0,0.00018853,2]
[374645774,1753397441889,-489.32,0.00018853,2]
[374645776,1753397441899,-460.0,0.00018853,2]
[374645777,1753397441909,-460.0,0.00018853,2]
[374645778,1753397441920,-460.0,0.00018853,2]
[374645779,1753397441930,-461.27924038,0.00018853,2]
[374645780,1753397441939,-460.0,0.00018853,2]
[374645781,1753397441950,-460.0,0.00018853,2]
[374645782,1753397441961,-1024.52,0.00018853,2]
[374645783,1753397441971,-870.61,0.00018853,2]
[374645784,1753397441980,-534.79,0.00018853,2]
[374645785,1753397441990,-460.0,0.00018853,2]
[374645786,1753397442009,-460.0,0.00018853,2]
[374645787,1753397442030,-460.0,0.00018853,2]
[374645788,1753397442040,-460.0,0.00018853,2]
[374645789,1753397442049,-464.18,0.00018853,2]
[374645790,1753397442061,-460.0,0.00018853,2]
[374645791,1753397442071,-460.0,0.00018853,2]
[374645792,1753397442081,-460.0,0.00018853,2]
[374645793,1753397442091,-460.0,0.00018853,2]
[374645794,1753397442101,-460.0,0.00018853,2]
[374645796,1753397442111,-460.0,0.00018853,2]
[374645798,1753397442121,-1616.89,0.00018853,2]
[374645800,1753397442131,-460.0,0.00018853,2]
[374645802,1753397442140,-260.96480504,0.00018853,2]
[374645804,1753397442149,-460.0,0.00018853,2]
[374645806,1753397442158,-538.45013108,0.00018853,2]
[374645808,1753397442168,-460.0,0.00018853,2]
[374645810,1753397442177,-425.45259592,0.00018853,2]
[374645812,1753397442186,-460.0,0.00018853,2]
[374645814,1753397442196,-460.0,0.00018853,2]
[374645816,1753397442205,-574.70048576,0.00018853,2]
[374645817,1753397442214,-681.7,0.00018853,2]
[374645820,1753397442224,-460.0,0.00018853,2]
[374645821,1753397442233,-623.74,0.00018853,2]
[374645823,1753397442243,-460.0,0.00018853,2]
[374645825,1753397442252,-519.97,0.00018853,2]
[374645827,1753397442263,-460.0,0.00018853,2]
[374645829,1753397442272,-2573.57,0.00018854,2]
[374645832,1753397442282,-3367.83,0.00018854,2]
[374645833,1753397442291,-2807.06,0.00018854,2]
[374645835,1753397442300,-460.0,0.00018854,2]
[374645837,1753397442312,-460.0,0.00018864,2]
[374645839,1753397442323,-307.44283012,0.00018864,2]
[374645842,1753397442332,-460.0,0.00018864,2]
[374645844,1753397442343,-540.72160293,0.00018864,2]
[374645846,1753397442353,-316.93484419,0.00018864,2]
[374645848,1753397442362,-460.0,0.00018864,2]
[374645850,1753397442371,-460.0,0.00018864,2]
[374645851,1753397442381,-598.93087769,0.00018864,2]
[374645853,1753397442391,-460.0,0.00018864,2]
[374645856,1753397442401,-460.0,0.00018864,2]
[374645857,1753397442410,-152.33328842,0.00018864,2]
[374645859,1753397442420,-460.0,0.00018864,2]
[374645861,1753397442430,-460.0,0.00018864,2]
[374645864,1753397442442,-1275.68,0.00018864,2]
[374645865,1753397442452,-535.37,0.00018864,2]
[374645867,1753397442461,-490.99281828,0.00018864,2]
[374645870,1753397442471,-460.0,0.00018864,2]
[374645872,1753397442480,-460.0,0.00018864,2]
[374645874,1753397442490,-460.0,0.00018864,2]
[374645876,1753397442499,-587.21,0.00018864,2]
[374645878,1753397442509,-460.0,0.00018864,2]
[374645880,1753397442518,-640.99,0.00018864,2]
[374645882,1753397442528,-539.14,0.00018864,2]
[374645885,1753397442538,-460.0,0.00018864,2]
[374645887,1753397442558,-460.0,0.00018864,2]
[374645889,1753397442569,-460.0,0.00018864,2]
[374645891,1753397442579,-460.0,0.00018864,2]
[374645894,1753397442590,-460.0,0.00018864,2]
[374645896,1753397442600,-460.0,0.00018864,2]
[374645899,1753397442610,-501.54,0.00018864,2]
[374645901,1753397442620,-460.0,0.00018864,2]
[374645902,1753397442630,-460.0,0.00018864,2]
[374645904,1753397442640,-460.0,0.00018864,2]
[374645906,1753397442651,-460.0,0.00018864,2]
[374645908,1753397442661,-460.0,0.00018866,2]
[374645909,1753397442670,-460.0,0.00018866,2]
[374645911,1753397442680,-460.0,0.00018866,2]
[374645913,1753397442691,-631.08,0.00018866,2]
[374645915,1753397442700,-460.0,0.00018866,2]
[374645917,1753397442711,-460.0,0.00018866,2]
[374645919,1753397442721,-460.0,0.00018866,2]
[374645921,1753397442731,-460.0,0.00018866,2]
[374645923,1753397442741,-488.78029466,0.00018866,2]
[374645925,1753397442751,-460.0,0.00018866,2]
[374645927,1753397442760,-460.0,0.00018866,2]
[374645929,1753397442770,-460.0,0.00018866,2]
[374645931,1753397442780,-460.0,0.00018866,2]
[374645933,1753397442789,-460.0,0.00018866,2]
[374645935,1753397442799,-460.0,0.00018866,2]
[374645937,1753397442809,-460.0,0.00018866,2]
[374645939,1753397442819,-460.0,0.00018866,2]
[374645941,1753397442829,-460.0,0.00018866,2]
[374645943,1753397442839,-461.2641824,0.00018866,2]
[374645945,1753397442849,-460.0,0.00018866,2]
[374645947,1753397442859,-460.0,0.00018866,2]
[374645949,1753397442869,-460.0,0.00018866,2]
[374645951,1753397442884,-460.0,0.00018866,2]
[374645953,1753397442894,-314.23521858,0.00018866,2]
[374645955,1753397442904,-460.0,0.00018866,2]
[374645956,1753397442915,-460.0,0.00018866,2]
[374645957,1753397442926,-460.0,0.00018866,2]
[374645958,1753397442936,-460.0,0.00018866,2]
[374645959,1753397442946,-460.0,0.00018866,2]
[374645961,1753397442958,-460.97,0.00018866,2]
[374645963,1753397442967,-500.0,0.00018866,2]
[374645965,1753397442978,-460.0,0.00018866,2]
[374645967,1753397442987,-460.0,0.00018866,2]
[374645969,1753397442997,-460.0,0.00018866,2]
[374645971,1753397443007,-707.42,0.00018866,2]
[374645973,1753397443017,-594.21071822,0.00018866,2]
[374645975,1753397443027,-460.0,0.00018866,2]
[374645977,1753397443036,-460.0,0.00018866,2]
[374645979,1753397443046,-460.0,0.00018866,2]
[374645981,1753397443055,-460.0,0.00018866,2]
[374645983,1753397443067,-460.0,0.00018866,2]
[374645985,1753397443076,-175.5438534,0.00018866,2]
[374645987,1753397443086,-460.0,0.00018866,2]
[374645989,1753397443095,-460.0,0.00018866,2]
[374645991,1753397443105,-460.0,0.00018866,2]
[374645993,1753397443114,-460.0,0.00018866,2]
[374645995,1753397443123,-1066.22,0.00018866,2]
[374645997,1753397443136,-460.0,0.00018866,2]
[374645999,1753397443146,-774.55,0.00018866,2]
[374646001,1753397443155,-500.0,0.00018873,2]
[374646003,1753397443165,-275.88070154,0.00018873,2]
[374646005,1753397443175,-500.0,0.00018873,2]
[374646007,1753397443185,-500.0,0.00018873,2]
[374646009,1753397443194,-500.0,0.00018873,2]
[374646011,1753397443204,-500.0,0.00018873,2]
[374646013,1753397443214,-500.39169446,0.00018873,2]
[374646015,1753397443223,-542.55430628,0.00018873,2]
[374646017,1753397443233,-500.0,0.00018873,2]
[374646019,1753397443243,-500.0,0.00018873,2]
[374646021,1753397443253,-500.0,0.00018873,2]
[374646023,1753397443263,-500.0,0.00018873,2]
[374646025,1753397443273,-500.0,0.00018873,2]
[374646027,1753397443282,-160.24324187,0.00018873,2]
[374646029,1753397443292,-447.67487227,0.00018873,2]
[374646031,1753397443302,-500.0,0.00018873,2]
[374646033,1753397443313,-500.0,0.00018873,2]
[374646035,1753397443324,-500.0,0.00018873,2]
[374646037,1753397443335,-501.84035295,0.00018873,2]
[374646039,1753397443345,-500.0,0.00018873,2]
[374646041,1753397443355,-150.82699609,0.00018873,2]
[374646044,1753397443365,-500.0,0.00018873,2]
[374646045,1753397443375,-500.0,0.00018873,2]
[374646048,1753397443384,-257.08560196,0.00018873,2]
[374646050,1753397443394,-500.0,0.00018873,2]
[374646052,1753397443404,-501.20232249,0.00018873,2]
[374646054,1753397443413,-500.0,0.00018873,2]
[374646056,1753397443423,-500.44806648,0.00018873,2]
[374646058,1753397443432,-500.0,0.00018873,2]
[374646060,1753397443442,-500.0,0.00018873,2]
[374646062,1753397443452,-500.0,0.00018873,2]
[374646064,1753397443462,-500.0,0.00018873,2]
[374646066,1753397443471,-500.0,0.00018873,2]
[374646068,1753397443481,-500.0,0.00018873,2]
[374646070,1753397443493,-500.0,0.00018873,2]
[374646072,1753397443503,-500.0,0.00018873,2]
[374646074,1753397443513,-501.13595044,0.00018873,2]
[374646076,1753397443523,-500.33808794,0.00018873,2]
[374646078,1753397443533,-410.87497047,0.000189,2]
[374646080,1753397443542,-3666.80190962,0.000189,2]
[374646082,1753397443552,-259.0,0.00018913,2]
[374646084,1753397443564,-460.0,0.00018967,2]
[374646086,1753397443573,-460.0,0.00018967,2]
[374646088,1753397443583,-460.0,0.00018967,2]
[374646090,1753397443593,-460.0,0.00018967,2]
[374646092,1753397443603,-460.0,0.00018967,2]
[374646094,1753397443612,-460.0,0.00018967,2]
[374646096,1753397443622,-460.0,0.00018967,2]
[374646098,1753397443631,-460.0,0.00018967,2]
[374646100,1753397443641,-460.0,0.00018967,2]
[374646102,1753397443651,-460.0,0.00018967,2]
[374646104,1753397443660,-460.0,0.00018967,2]
[374646106,1753397443670,-460.0,0.00018967,2]
[374646108,1753397443680,-460.0,0.00018967,2]
[374646110,1753397443690,-460.0,0.00018967,2]
[374646112,1753397443701,-513.34,0.00018967,2]
[374646114,1753397443712,-460.0,0.00018967,2]
[374646117,1753397443722,-460.0,0.00018967,2]
[374646118,1753397443732,-460.0,0.00018967,2]
[374646120,1753397443741,-460.0,0.00018967,2]
[374646123,1753397443751,-549.87824903,0.00019027,2]
[374646125,1753397443761,-460.0,0.00019027,2]
[374646127,1753397443771,-460.0,0.00019027,2]
[374646129,1753397443781,-460.0,0.00019027,2]
[374646131,1753397443791,-587.25,0.00019027,2]
[374646133,1753397443800,-622.17,0.00019027,2]
[374646135,1753397443810,-2405.71,0.00019027,2]
[374646137,1753397443820,-697.42,0.00019027,2]
[374646139,1753397443830,-460.0,0.00019027,2]
[374646141,1753397443839,-460.0,0.00019027,2]
[374646143,1753397443848,-460.0,0.00019027,2]
[374646145,1753397443858,-460.0,0.00019027,2]
[374646147,1753397443868,-460.0,0.00019028,2]
[374646149,1753397443883,-460.0,0.00019028,2]
[374646151,1753397443893,-460.0,0.00019028,2]
[374646153,1753397443902,-460.0,0.00019028,2]
[374646155,1753397443911,-250.47248155,0.00019028,2]
[374646157,1753397443922,-6677.64,0.00019028,2]
[374646159,1753397443931,-460.0,0.00019028,2]
[374646161,1753397443941,-460.0,0.00019028,2]
[374646163,1753397443950,-3208.31,0.00019028,2]
[374646165,1753397443960,-460.0,0.00019028,2]
[374646167,1753397443971,-460.0,0.00019028,2]
[374646168,1753397444093,-460.0,0.00019028,2]
[374646169,1753397444104,-460.0,0.00019028,2]
[374646170,1753397444115,-468.13,0.00019028,2]
[374646171,1753397444125,-661.28,0.00019028,2]
[374646172,1753397444135,-460.0,0.00019028,2]
[374646173,1753397444146,-884.18,0.00019028,2]
[374646174,1753397444157,-460.0,0.00019028,2]
[374646175,1753397444167,-460.0,0.00019028,2]
[374646176,1753397444177,-2919.28,0.00019028,2]
[374646177,1753397444187,-3222.07,0.00019028,2]
[374646178,1753397444196,-460.0,0.00019028,2]
[374646179,1753397444206,-460.0,0.00019028,2]
[374646180,1753397444216,-729.29,0.00019028,2]
[374646181,1753397444226,-460.0,0.00019028,2]
[374646182,1753397444236,-460.0,0.00019028,2]
[374646183,1753397444246,-460.0,0.00019028,2]
[374646184,1753397444256,-460.0,0.00019028,2]
[374646185,1753397444266,-379.27882195,0.00019028,2]
[374646186,1753397444275,-2213.92,0.00019028,2]
[374646187,1753397444286,-686.76,0.00019028,2]
[374646188,1753397444296,-880.35,0.00019028,2]
[374646189,1753397444306,-460.0,0.00019028,2]
[374646190,1753397444317,-460.0,0.00019028,2]
[374646191,1753397444327,-678.76,0.00019028,2]
[374646192,1753397444336,-460.0,0.00019028,2]
[374646193,1753397444345,-1159.8,0.00019028,2]
[374646194,1753397444357,-2759.23,0.00019028,2]
[374646195,1753397444367,-460.0,0.00019028,2]
[374646196,1753397444377,-815.74798158,0.00019029,2]
[374646197,1753397444386,-460.0,0.00019029,2]
[374646198,1753397444396,-460.0,0.00019029,2]
[374646199,1753397444406,-460.0,0.00019029,2]
[374646200,1753397444416,-460.0,0.00019029,2]
[374646201,1753397444425,-460.0,0.00019029,2]
[374646202,1753397444435,-460.0,0.00019029,2]
[374646203,1753397444445,-460.0,0.00019029,2]
[374646204,1753397444454,-494.30647834,0.00019029,2]
[374646205,1753397444464,-460.0,0.00019029,2]
[374646206,1753397444474,-460.0,0.00019029,2]
[374646207,1753397444485,-303.11856516,0.00019029,2]
[374646208,1753397444495,-460.0,0.00019029,2]
[374646209,1753397444504,-460.0,0.00019029,2]
[374646210,1753397444514,-460.0,0.00019029,2]
[374646211,1753397444524,-460.0,0.00019029,2]
[374646212,1753397444534,-460.0,0.00019029,2]
[374646213,1753397444543,-461.36909898,0.00019029,2]
[374646214,1753397444553,-460.0,0.00019029,2]
[374646215,1753397444564,-460.0,0.00019029,2]
[374646216,1753397444574,-460.0,0.00019029,2]
[374646217,1753397444584,-460.0,0.00019029,2]
[374646218,1753397444594,-460.0,0.00019029,2]
[374646219,1753397444603,-460.0,0.00019029,2]
[374646220,1753397444613,-625.52,0.00019029,2]
[374646221,1753397444622,-460.0,0.00019029,2]
[374646222,1753397444632,-374.78725936,0.00019029,2]
[374646223,1753397444641,-460.0,0.00019029,2]
[374646224,1753397444651,-460.0,0.00019029,2]
[374646225,1753397444660,-460.0,0.00019029,2]
[374646226,1753397444670,-893.14,0.00019029,2]
[374646227,1753397444681,-519.6,0.00019029,2]
[374646228,1753397444690,-460.0,0.00019029,2]
[374646229,1753397444700,-460.0,0.00019029,2]
[374646230,1753397444710,-460.0,0.00019029,2]
[374646231,1753397444720,-460.0,0.00019029,2]
[374646232,1753397444731,-460.0,0.00019029,2]
[374646233,1753397444740,-460.0,0.00019029,2]
[374646234,1753397444750,-460.0,0.00019029,2]
[374646235,1753397444760,-460.0,0.00019029,2]
[374646236,1753397444770,-460.0,0.00019029,2]
[374646237,1753397444780,-615.79,0.00019029,2]
[374646238,1753397444789,-460.0,0.00019029,2]
[374646239,1753397444799,-1116.63,0.00019029,2]
[374646240,1753397444809,-460.0,0.00019029,2]
[374646241,1753397444820,-880.96,0.00019029,2]
[374646242,1753397444831,-460.83,0.00019029,2]
[374646243,1753397444840,-620.48,0.00019029,2]
[374646244,1753397444850,-781.45,0.00019029,2]
[374646245,1753397444860,-1417.53,0.00019029,2]
[374646246,1753397444870,-462.99488661,0.00019029,2]
[374646247,1753397444880,-460.0,0.00019029,2]
[374646248,1753397444894,-460.0,0.00019029,2]
[374646249,1753397444904,-460.0,0.00019029,2]
[374646250,1753397444914,-460.0,0.00019029,2]
[374646251,1753397444924,-460.0,0.00019029,2]
[374646252,1753397444934,-460.0,0.00019029,2]
[374646253,1753397444944,-460.0,0.00019029,2]
[374646254,1753397444953,-460.0,0.00019029,2]
[374646255,1753397444964,-215.72627796,0.00019029,2]
[374646256,1753397444974,-460.0,0.00019029,2]
[374646257,1753397444984,-460.0,0.00019029,2]
[374646258,1753397444994,-460.0,0.00019029,2]
[374646259,1753397445004,-460.0,0.00019029,2]
[374646260,1753397445014,-542.83,0.0001903,2]
[374646261,1753397445023,-460.0,0.0001903,2]
[374646262,1753397445033,-460.0,0.0001903,2]
[374646263,1753397445042,-460.0,0.0001903,2]
[374646264,1753397445053,-460.0,0.0001903,2]
[374646265,1753397445063,-460.0,0.0001903,2]
[374646266,1753397445072,-460.0,0.0001903,2]
[374646267,1753397445083,-460.0,0.0001903,2]
[374646268,1753397445092,-460.0,0.0001903,2]
[374646269,1753397445102,-460.0,0.0001903,2]
[374646270,1753397445111,-460.0,0.0001903,2]
[374646271,1753397445121,-460.0,0.0001903,2]
[374646272,1753397445131,-554.98,0.0001903,2]
[374646273,1753397445141,-1320.8,0.0001903,2]
[374646274,1753397445151,-460.0,0.0001903,2]
[374646275,1753397445160,-2222.32,0.0001903,2]
[374646276,1753397445170,-817.32,0.0001903,2]
[374646277,1753397445180,-1227.56,0.0001903,2]
[374646278,1753397445189,-1107.48,0.0001903,2]
[374646279,1753397445199,-460.0,0.0001903,2]
[374646280,1753397445208,-460.0,0.0001903,2]
[374646281,1753397445218,-2923.76,0.0001903,2]
[374646282,1753397445227,-460.0,0.0001903,2]
[374646283,1753397445237,-2225.69,0.0001903,2]
[374646284,1753397445247,-745.44,0.0001903,2]
[374646285,1753397445257,-629.56,0.0001903,2]
[374646286,1753397445266,-460.0,0.0001903,2]
[374646287,1753397445276,-1965.92,0.0001903,2]
[374646288,1753397445285,-912.46,0.0001903,2]
[374646289,1753397445295,-460.0,0.0001903,2]
[374646290,1753397445304,-1190.72,0.0001903,2]
[374646291,1753397445315,-3025.32,0.0001903,2]
[374646292,1753397445324,-460.0,0.0001903,2]
[374646293,1753397445334,-460.0,0.0001903,2]
[374646294,1753397445343,-460.0,0.0001903,2]
[374646295,1753397445353,-538.58,0.0001903,2]
[374646296,1753397445363,-793.39,0.0001903,2]
[374646297,1753397445373,-987.03,0.0001903,2]
[374646298,1753397445383,-6058.1,0.0001903,2]
[374646299,1753397445392,-3666.80190958,0.00019107,2]
[374646300,1753397445402,-460.0,0.00019127,2]
[374646301,1753397445411,-460.0,0.00019127,2]
[374646302,1753397445421,-460.0,0.00019127,2]
[374646303,1753397445431,-566.43,0.00019127,2]
[374646304,1753397445441,-460.0,0.00019127,2]
[374646305,1753397445450,-460.0,0.00019127,2]
[374646306,1753397445460,-626.16,0.00019127,2]
[374646307,1753397445470,-460.0,0.00019127,2]
[374646308,1753397445480,-460.0,0.00019127,2]
[374646309,1753397445490,-460.0,0.00019127,2]
[374646310,1753397445499,-388.23982907,0.00019127,2]
[374646311,1753397445509,-460.0,0.00019127,2]
[374646312,1753397445519,-460.0,0.00019127,2]
[374646313,1753397445528,-460.0,0.00019127,2]
[374646314,1753397445537,-460.0,0.00019127,2]
[374646315,1753397445547,-171.95527824,0.00019127,2]
[374646316,1753397445556,-561.58,0.00019127,2]
[374646317,1753397445566,-460.0,0.00019127,2]
[374646318,1753397445576,-460.0,0.00019127,2]
[374646319,1753397445585,-488.72,0.00019127,2]
[374646320,1753397445595,-151.49048345,0.00019127,2]
[374646321,1753397445604,-712.96,0.00019127,2]
[374646322,1753397445614,-593.42312737,0.00019127,2]
[374646323,1753397445623,-918.14,0.00019127,2]
[374646324,1753397445633,-460.0,0.00019127,2]
[374646325,1753397445642,-460.0,0.00019127,2]
[374646326,1753397445652,-460.0,0.00019127,2]
[374646327,1753397445661,-460.0,0.00019127,2]
[374646328,1753397445671,-518.13,0.00019127,2]
[374646329,1753397445680,-460.0,0.00019127,2]
[374646330,1753397445689,-705.68,0.00019127,2]
[374646331,1753397445699,-571.59,0.00019127,2]
[374646332,1753397445709,-460.0,0.00019127,2]
[374646333,1753397445718,-460.0,0.00019127,2]
[374646334,1753397445728,-460.0,0.00019127,2]
[374646335,1753397445738,-635.83,0.00019127,2]
[374646336,1753397445747,-460.0,0.00019127,2]
[374646337,1753397445757,-460.0,0.00019127,2]
[374646338,1753397445766,-1013.56,0.00019127,2]
[374646339,1753397445776,-460.0,0.00019127,2]
[374646340,1753397445785,-1037.79,0.00019127,2]
[374646341,1753397445795,-460.0,0.00019127,2]
[374646342,1753397445804,-460.0,0.00019127,2]
[374646343,1753397445814,-460.0,0.00019127,2]
[374646344,1753397445823,-460.0,0.00019127,2]
[374646345,1753397445833,-460.0,0.00019127,2]
[374646346,1753397445843,-460.0,0.00019127,2]
[374646347,1753397445852,-460.0,0.00019127,2]
[374646348,1753397445863,-460.0,0.00019127,2]
[374646349,1753397445874,-460.0,0.00019127,2]
[374646350,1753397445884,-460.0,0.00019127,2]
[374646351,1753397445896,-460.0,0.00019127,2]
[374646352,1753397445905,-460.0,0.00019127,2]
[374646353,1753397445916,-460.0,0.00019127,2]
[374646354,1753397445926,-489.32,0.00019127,2]
[374646355,1753397445937,-460.0,0.00019127,2]
[374646356,1753397445946,-460.0,0.00019127,2]
[374646357,1753397445956,-1024.52,0.00019127,2]
[374646358,1753397445968,-870.61,0.00019127,2]
[374646359,1753397445979,-534.79,0.00019127,2]
[374646360,1753397445989,-460.0,0.00019127,2]
[374646361,1753397445999,-460.0,0.00019127,2]
[374646362,1753397446009,-460.0,0.00019127,2]
[374646363,1753397446019,-464.18,0.00019127,2]
[374646364,1753397446029,-460.0,0.00019127,2]
[374646365,1753397446038,-460.0,0.00019127,2]
[374646366,1753397446048,-460.0,0.00019127,2]
[374646367,1753397446058,-460.0,0.00019127,2]
[374646368,1753397446068,-297.16130481,0.00019127,2]
[374646369,1753397446077,-1616.89,0.00019127,2]
[374646370,1753397446087,-460.0,0.00019127,2]
[374646371,1753397446096,-460.0,0.00019127,2]
[374646372,1753397446106,-460.0,0.00019127,2]
[374646373,1753397446116,-460.0,0.00019127,2]
[374646375,1753397446126,-460.0,0.00019127,2]
[374646377,1753397446135,-681.7,0.00019127,2]
[374646379,1753397446144,-460.0,0.00019127,2]
[374646382,1753397446158,-623.74,0.00019127,2]
[374646392,1753397446275,-460.0,0.00019127,2]
[374646394,1753397446285,-519.97,0.00019127,2]